[Event "DVM U14 2019"]
[Site "Magedburg"]
[Date "2019.12.27"]
[Round "1"]
[White "Müller, Magnus"]
[Black "Schreidl, Michael"]
[Result "1-0"]
[ECO "C54"]
[WhiteElo "2055"]
[BlackElo "1632"]
[Annotator "NA RC"]
[PlyCount "63"]
[EventDate "2019.12.27"]
[EventType "team-tourn"]
[EventRounds "7"]
[EventCountry "GER"]
[SourceTitle "playchess.com"]
[Source "ChessBase"]
[SourceQuality "1"]
[WhiteTeam "ESV Gera"]
[BlackTeam "SK Frankenthal"]
[TimeControl "40/5400+30:1800+30"]

1. e4 {[%emt 0:00:00]} e5 {[%emt 0:00:00]} 2. Nf3 {[%emt 0:00:00]} Nc6 {[%emt 0:00:00]} 3. Bc4 {[%emt 0:00:00]} Bc5 {[%emt 0:00:00]} 4. c3 {[%emt 0:00:00]} Nf6 {[%emt 0:00:00]} 5. d4 {[%emt 0:00:00]} exd4 {[%emt 0:00:02]} 6. O-O {[%emt 0:00:00]} d5 {[%emt 0:11:03]} 7. exd5 {[%emt 0:00:23]} Nxd5 {[%emt 0:00:10]} 8. Qb3 {[%emt 0:00:02]} Na5 {[%emt 0:01:57]} 9. Qb5+ {[%emt 0:00:07]} c6 {[%emt 0:00:49]} 10. Qxc5 {[%emt 0:00:18]} b6 {[%emt 0:00:22]} 11. Qxd4 {[%emt 0:00:15]} O-O {[%emt 0:04:01]} 12. Bxd5 {[%emt 0:00:15]} cxd5 {[%emt 0:00:10]} 13. Bf4 {[%emt 0:00:07]} Nc6 {[%emt 0:00:58]} 14. Qd3 {[%emt 0:00:04]} a5 {[%emt 0:00:52]} 15. Re1 {[%emt 0:00:04]} Ba6 {[%emt 0:01:01]} 16. Qc2 {[%emt 0:00:05]} d4 {[%emt 0:06:34]} 17. Nxd4 {[%emt 0:00:56]} Nxd4 {[%emt 0:00:15]} 18. cxd4 {[%emt 0:00:02]} Qxd4 {[%emt 0:00:49]} 19. Be5 {[%emt 0:00:07]} Qg4 {[%emt 0:05:45]} 20. Nc3 {[%emt 0:00:06]} Bb7 {[%emt 0:02:11]} 21. Bg3 {[%emt 0:00:07]} Rac8 {[%emt 0:02:04]} 22. Qb3 {[%emt 0:00:14]} Qg6 {[%emt 0:01:14]} 23. Rad1 {[%emt 0:00:24]} Rc6 {[%emt 0:04:20]} 24. Nd5 {[%emt 0:00:04]} Re6 {[%emt 0:09:16]} 25. Ne7+ {[%emt 0:00:04]} Rxe7 {[%emt 0:00:07]} 26. Rxe7 {[%emt 0:00:02]} Qc6 {[%emt 0:00:51]} 27. Qf3 {[%emt 0:00:21]} Qxf3 {[%emt 0:01:04]} 28. gxf3 {[%emt 0:00:04]} Bxf3 {[%emt 0:00:07]} 29. Rd3 {[%emt 0:00:27]} Bg4 {[%emt 0:04:47]} 30. Bc7 {[%emt 0:00:04]} Be6 {[%emt 0:01:23]} 31. Rd8 {[%emt 0:00:10]} Bxa2 {[%emt 0:00:34]} 32. Ree8 {normal} 1-0

[Event "DVM U14 2019"]
[Site "Magedburg"]
[Date "2019.12.27"]
[Round "1"]
[White "Garner, Isaac"]
[Black "Lerchl, Clemens"]
[Result "1-0"]
[ECO "B72"]
[WhiteElo "2040"]
[BlackElo "1743"]
[Annotator "NA RC"]
[PlyCount "57"]
[EventDate "2019.12.27"]
[EventType "team-tourn"]
[EventRounds "7"]
[EventCountry "GER"]
[SourceTitle "playchess.com"]
[Source "ChessBase"]
[SourceQuality "1"]
[WhiteTeam "Hamburger SK"]
[BlackTeam "SC Vaterstetten-Grasbrunn"]
[TimeControl "40/5400+30:1800+30"]

1. e4 {[%emt 0:00:00]} c5 {[%emt 0:00:00]} 2. Nf3 {[%emt 0:00:00]} d6 {[%emt 0:00:00]} 3. d4 {[%emt 0:00:00]} Nf6 {[%emt 0:00:00]} 4. Nc3 {[%emt 0:00:00]} cxd4 {[%emt 0:00:00]} 5. Nxd4 {[%emt 0:00:01]} g6 {[%emt 0:00:00]} 6. Be3 {[%emt 0:00:21]} Bg7 {[%emt 0:00:00]} 7. Be2 {[%emt 0:00:08]} O-O {[%emt 0:00:00]} 8. Qd2 {[%emt 0:00:08]} Nc6 {[%emt 0:00:25]} 9. O-O-O {[%emt 0:00:34]} Ng4 {[%emt 0:00:51]} 10. Bxg4 {[%emt 0:00:11]} Bxg4 {[%emt 0:00:05]} 11. f3 {[%emt 0:00:06]} Bd7 {[%emt 0:00:10]} 12. Nxc6 {[%emt 0:00:24] B72: Sicilian Dragon: 6 Be3, lines with h3+Bc4 and sidelines} bxc6 {[%emt 0:00:16]} 13. Bh6 {[%emt 0:00:05] [#]} Rb8 $146 {[%emt 0:00:35] unterminated} ({Predecessor:} 13... Qa5 14. Bxg7 Kxg7 15. h4 h5 16. e5 d5 17. g4 Rh8 18. Qg5 Kf8 19. a3 Be6 {0-1 (56) Huschenbeth,N (2601)-Mista,A (2597) Czech Republic 2018}) 14. Bxg7 {[%emt 0:18:07]} Kxg7 {[%emt 0:00:06]} 15. h4 {[%emt 0:00:04] unterminated} Qb6 {[%emt 0:03:37]} 16. b3 {[%emt 0:01:07] unterminated} h5 {[%emt 0:05:11] unterminated} 17. g4 {[%emt 0:06:33] unterminated} Rh8 {[%emt 0:01:21] unterminated} 18. g5 {[%emt 0:05:12]} Rhc8 {[%emt 0:04:23] unterminated} 19. f4 {[%emt 0:03:59] unterminated} d5 {[%emt 0:20:50] unterminated} (19... Qc5 $11 {remains equal.}) 20. exd5 {[%emt 0:13:19]} (20. f5 $5) 20... Bf5 {[%emt 0:00:09]} (20... Bg4 $1 $11) 21. d6 {[%emt 0:06:59]} Rd8 {[%emt 0:00:46]} 22. Na4 {[%emt 0:00:16]} Qb5 {[%emt 0:01:23]} 23. Qc3+ {[%emt 0:01:14]} Kh7 {[%emt 0:02:16]} 24. dxe7 {[%emt 0:00:22]} Re8 {[%emt 0:02:21]} 25. Rhe1 {[%emt 0:01:32] unterminated} Be6 {[%emt 0:01:22]} 26. Nc5 {[%emt 0:03:35] unterminated} Rxe7 $18 {[%emt 0:08:02]} 27. Ne4 {[%emt 0:00:53]} Kg8 {[%emt 0:01:53]} 28. Nf6+ {[%emt 0:00:53]} Kf8 {[%emt 0:00:07]} 29. Nd5 {[%emt 0:01:04] normal} 1-0

[Event "DVM U14 2019"]
[Site "Magedburg"]
[Date "2019.12.27"]
[Round "1"]
[White "Morgenstern, Tobias"]
[Black "Berresheim, Nils"]
[Result "1-0"]
[ECO "B53"]
[WhiteElo "1943"]
[BlackElo "1509"]
[Annotator "NA RC"]
[PlyCount "67"]
[EventDate "2019.12.27"]
[EventType "team-tourn"]
[EventRounds "7"]
[EventCountry "GER"]
[SourceTitle "playchess.com"]
[Source "ChessBase"]
[SourceQuality "1"]
[WhiteTeam "Schachzwerge Magdeburg"]
[BlackTeam "SF Essen-Katernberg"]
[TimeControl "40/5400+30:1800+30"]

1. e4 {[%emt 0:00:00]} c5 {[%emt 0:00:00]} 2. Nf3 {[%emt 0:00:00]} d6 {[%emt 0:00:00]} 3. d4 {[%emt 0:00:38]} cxd4 {[%emt 0:00:00]} 4. Qxd4 {[%emt 0:00:39]} Nc6 {[%emt 0:01:46]} 5. Bb5 {[%emt 0:00:06]} Bd7 {[%emt 0:03:06]} 6. Bxc6 {[%emt 0:00:13]} Bxc6 {[%emt 0:01:31]} 7. Nc3 {[%emt 0:00:11]} Nf6 {[%emt 0:02:03]} 8. Bg5 {[%emt 0:01:09]} e5 {[%emt 0:08:17]} 9. Qd2 {[%emt 0:06:44] B53: Sicilian: 2...d6: Lines with Qxd4} (9. Qd3 Be7 10. Rd1 Qa5 11. O-O O-O 12. a3 Rfd8 13. b4 Qb6 14. Nh4 d5 15. Nf5 dxe4 16. Nxe7+ Kf8 17. Qg3 Kxe7 18. Qxe5+ {1-0 (25) Polzin,R (2413)-Schwarz,D (2278) Novi Sad 2016}) 9... Be7 {[%emt 0:02:17]} 10. Bxf6 {[%emt 0:02:39]} Bxf6 {[%emt 0:03:36]} 11. O-O-O {[%emt 0:00:51]} Be7 {[%emt 0:03:27]} 12. Nd5 {[%emt 0:01:31]} Bxd5 {[%emt 0:00:54]} 13. Qxd5 {[%emt 0:01:35]} Qc7 {[%emt 0:01:58] unterminated} 14. Qb5+ $146 {[%emt 0:07:22] unterminated} ({Predecessor:} 14. Rd3 O-O 15. Rc3 Qd7 16. Nxe5 Qd8 17. Nf3 b6 {0-1 (27) Rau,E (1221)-Shkundin,M (1224) Willingen 2019}) 14... Qc6 {[%emt 0:02:49] unterminated} 15. Rd5 {[%emt 0:01:07] unterminated} Rc8 {[%emt 0:08:11] unterminated} 16. Qd3 {[%emt 0:02:03]} O-O {[%emt 0:03:11] unterminated} 17. h4 {[%emt 0:02:05] unterminated} Rc7 {[%emt 0:08:32] unterminated} 18. c3 {[%emt 0:03:30] unterminated} a6 {[%emt 0:05:17] unterminated} 19. Kb1 {[%emt 0:05:41] unterminated} b5 {[%emt 0:03:53] unterminated} 20. Ng5 {[%emt 0:07:22] unterminated} b4 {[%emt 0:05:36] unterminated} 21. Rc1 {[%emt 0:18:12] unterminated} Rfc8 {[%emt 0:05:35] unterminated} 22. c4 {[%emt 0:05:35] unterminated} Qb6 {[%emt 0:06:30] unterminated} 23. f4 {[%emt 0:03:31]} exf4 {[%emt 0:04:36]} 24. e5 {[%emt 0:04:53]} Bxg5 {[%emt 0:06:48]} 25. hxg5 {[%emt 0:03:25]} Rc5 {[%emt 0:05:28]} 26. exd6 {[%emt 0:03:10]} Rd8 {[%emt 0:02:00]} 27. Qd4 {[%emt 0:01:58]} Rc6 {[%emt 0:01:36]} 28. Qxb6 {[%emt 0:01:05]} Rxb6 {[%emt 0:00:01]} 29. c5 {[%emt 0:00:51]} Rc6 {[%emt 0:00:08]} 30. Re1 {[%emt 0:00:55] unterminated} Kf8 $18 {[%emt 0:00:43]} 31. Re7 {[%emt 0:00:26]} Rdc8 {[%emt 0:01:18]} 32. Rb7 {[%emt 0:05:22]} Rxc5 {[%emt 0:02:14]} 33. Rxc5 {[%emt 0:00:07]} Rxc5 {[%emt 0:00:08]} 34. Rb8+ {[%emt 0:00:03] normal} 1-0

[Event "DVM U14 2019"]
[Site "Magedburg"]
[Date "2019.12.27"]
[Round "1"]
[White "Halabi, Ibrahim"]
[Black "Schubert, Nikita"]
[Result "*"]
[ECO "C54"]
[WhiteElo "1918"]
[BlackElo "1914"]
[Annotator "NA RC"]
[PlyCount "42"]
[EventDate "2019.12.27"]
[EventType "team-tourn"]
[EventRounds "7"]
[EventCountry "GER"]
[SourceTitle "playchess.com"]
[Source "ChessBase"]
[SourceQuality "1"]
[WhiteTeam "SK Frankenthal"]
[BlackTeam "ESV Gera"]
[TimeControl "40/5400+30:1800+30"]

1. e4 {[%emt 0:00:00]} e5 {[%emt 0:00:00]} 2. Nf3 {[%emt 0:00:00]} Nc6 {[%emt 0:00:00]} 3. Bc4 {[%emt 0:00:00]} Bc5 {[%emt 0:00:00]} 4. c3 {[%emt 0:00:00]} Nf6 {[%emt 0:00:05]} 5. d4 {[%emt 0:01:02]} exd4 {[%emt 0:00:37]} 6. e5 {[%emt 0:00:12]} d5 {[%emt 0:00:39]} 7. Bb5 {[%emt 0:00:25]} Ne4 {[%emt 0:00:51]} 8. cxd4 {[%emt 0:00:21]} Bb6 {[%emt 0:00:12] unterminated} 9. Nc3 {[%emt 0:00:37] unterminated} O-O {[%emt 0:01:36]} 10. Be3 {[%emt 0:01:57] unterminated} f6 {[%emt 0:07:26] unterminated} 11. Qb3 {[%emt 0:10:57] unterminated} Nxc3 {[%emt 0:07:16] unterminated} 12. bxc3 {[%emt 0:13:13] unterminated} Na5 {[%emt 0:10:37] unterminated} 13. Qc2 {[%emt 0:02:23] unterminated} fxe5 {[%emt 0:21:02]} 14. Nxe5 {[%emt 0:00:21]} Bf5 {[%emt 0:02:22] unterminated} 15. Bd3 {[%emt 0:02:05]} Bxd3 {[%emt 0:00:32]} 16. Qxd3 {[%emt 0:00:12] unterminated} c6 {[%emt 0:04:23]} 17. O-O {[%emt 0:02:04] unterminated} Bc7 $14 {[%emt 0:03:26]} 18. f4 {[%emt 0:02:25] unterminated} Qe8 {[%emt 0:09:49] unterminated} 19. Rae1 {[%emt 0:06:15] unterminated} Qh5 {[%emt 0:06:09] unterminated} 20. Bc1 {[%emt 0:09:08] unterminated} Bd6 {[%emt 0:05:25] unterminated} 21. Re3 {[%emt 0:07:14]} Qf5 {[%emt 0:01:05] unterminated} *

[Event "DVM U14 2019"]
[Site "Magedburg"]
[Date "2019.12.27"]
[Round "1"]
[White "Blome, Johannes"]
[Black "Karpen, Jakob"]
[Result "1-0"]
[ECO "C78"]
[WhiteElo "1877"]
[BlackElo "1381"]
[Annotator "NA RC"]
[PlyCount "41"]
[EventDate "2019.12.27"]
[EventType "team-tourn"]
[EventRounds "7"]
[EventCountry "GER"]
[SourceTitle "playchess.com"]
[Source "ChessBase"]
[SourceQuality "1"]
[WhiteTeam "Hamburger SK"]
[BlackTeam "SC Vaterstetten-Grasbrunn"]
[TimeControl "40/5400+30:1800+30"]

1. e4 {[%emt 0:00:00]} e5 {[%emt 0:00:00]} 2. Nf3 {[%emt 0:00:00]} Nc6 {[%emt 0:00:00]} 3. Bb5 {[%emt 0:00:00]} a6 {[%emt 0:00:22]} 4. Ba4 {[%emt 0:00:00]} Nf6 {[%emt 0:00:28]} 5. O-O {[%emt 0:00:43]} b5 {[%emt 0:00:39]} 6. Bb3 {[%emt 0:00:21]} Bc5 {[%emt 0:00:23]} 7. c3 {[%emt 0:00:59]} O-O {[%emt 0:00:58]} 8. d4 {[%emt 0:00:22]} exd4 {[%emt 0:02:37]} 9. cxd4 {[%emt 0:00:09]} Bb6 {[%emt 0:00:44]} 10. e5 {[%emt 0:00:21]} Ne8 {[%emt 0:02:24]} 11. d5 {[%emt 0:01:23]} Na5 {[%emt 0:00:41]} 12. Bc2 {[%emt 0:00:30]} Bb7 {[%emt 0:01:04]} 13. Ng5 {[%emt 0:05:53]} g6 {[%emt 0:00:32]} 14. Ne4 {[%emt 0:06:08]} Kg7 {[%emt 0:03:19]} 15. Bg5 {[%emt 0:03:53]} Qc8 {[%emt 0:01:18]} 16. Bf6+ {[%emt 0:01:10]} Nxf6 {[%emt 0:00:19]} 17. exf6+ {[%emt 0:00:15]} Kh8 {[%emt 0:00:47]} 18. Qd2 {[%emt 0:00:26]} g5 {[%emt 0:02:05]} 19. Nxg5 {[%emt 0:01:14]} Qd8 {[%emt 0:06:53]} 20. Qd3 {[%emt 0:00:13]} Qxf6 {[%emt 0:01:14]} 21. Qxh7# {[%emt 0:00:07] normal} 1-0

[Event "DVM U14 2019"]
[Site "Magedburg"]
[Date "2019.12.27"]
[Round "1"]
[White "Zeuner, Ole"]
[Black "Jahrke, Jonas"]
[Result "1-0"]
[ECO "B51"]
[WhiteElo "1794"]
[BlackElo "1833"]
[Annotator "NA"]
[PlyCount "98"]
[EventDate "2019.12.27"]
[EventType "team-tourn"]
[EventRounds "7"]
[EventCountry "GER"]
[SourceTitle "playchess.com"]
[Source "ChessBase"]
[SourceQuality "1"]
[WhiteTeam "Schachzwerge Magdeburg"]
[BlackTeam "SF Essen-Katernberg"]
[TimeControl "40/5400+30:1800+30"]

1. e4 {[%emt 0:00:00]} c5 {[%emt 0:00:00]} 2. Nf3 {[%emt 0:00:00]} d6 {[%emt 0:00:00]} 3. Bb5+ {[%emt 0:01:49]} Nd7 {[%emt 0:03:03] unterminated} 4. O-O {[%emt 0:00:53]} Ngf6 {[%emt 0:01:59]} 5. Re1 {[%emt 0:00:34] unterminated} e6 {[%emt 0:04:14]} 6. c3 {[%emt 0:01:27] unterminated} a6 {[%emt 0:02:28]} 7. Bf1 {[%emt 0:02:08] unterminated} Be7 {[%emt 0:07:37]} 8. d4 {[%emt 0:00:54]} O-O {[%emt 0:03:23] unterminated unterminated. B51: Sicilian: Moscow Variation (3 Bb5+) without 3...Bd7} (8... d5 9. e5 Ne4 10. Bd3 f5 11. exf6 Ndxf6 12. Nbd2 Nxd2 13. Bxd2 O-O 14. Bg5 Bd7 15. Qc2 h6 16. Bh4 {1-0 (51) Ulybin,M (2501)-Kevlishvili,R (2425) Amsterdam 2017}) 9. e5 {[%emt 0:06:57] unterminated} dxe5 {[%emt 0:02:54] unterminated} 10. dxe5 {[%emt 0:01:07]} Nd5 {[%emt 0:01:34]} 11. c4 {[%emt 0:01:10] unterminated} Nb4 {[%emt 0:03:19]} 12. a3 {[%emt 0:01:16]} Nc6 {[%emt 0:00:19] unterminated} 13. Nc3 {[%emt 0:02:44] unterminated} Qc7 {[%emt 0:10:19]} 14. Bf4 {[%emt 0:02:13] unterminated} Rd8 {[%emt 0:01:43]} 15. Qc2 {[%emt 0:00:44]} Nd4 $146 {[%emt 0:03:43] unterminated} ({Predecessor:} 15... Nf8 16. Bg3 {1-0 (28) Debray,C (2328)-Estevez Hernandez,C (1892) Las Palmas 2017}) 16. Qe4 {[%emt 0:07:20] unterminated} (16. Nxd4 $1 $14 cxd4 17. Na2) 16... Nf8 {[%emt 0:10:15] unterminated} 17. Rad1 {[%emt 0:04:16]} Nxf3+ {[%emt 0:01:05]} 18. Qxf3 {[%emt 0:00:13] unterminated} Bd7 {[%emt 0:01:46] [#] unterminated} 19. Bd3 {[%emt 0:02:34]} (19. Nd5 $1 $16 {[%cal Rd5c7]} exd5 20. e6 {[%mdl 64] Discovered Attack}) 19... Ng6 {[%emt 0:03:21]} 20. Bg3 {[%emt 0:01:11]} Bc6 {[%emt 0:01:16]} 21. Be4 {[%emt 0:01:06] unterminated} Rxd1 {[%emt 0:00:43]} 22. Rxd1 {[%emt 0:01:02]} Bxe4 {[%emt 0:02:08] unterminated} 23. Qxe4 {[%emt 0:03:28] unterminated} Rb8 {[%emt 0:09:57] unterminated} 24. h4 {[%emt 0:16:08] unterminated} Qb6 {[%emt 0:07:31] unterminated} 25. h5 {[%emt 0:09:21]} Qxb2 {[%emt 0:02:30]} 26. hxg6 {[%emt 0:00:15]} Qxc3 {[%emt 0:00:15]} 27. gxh7+ {[%emt 0:05:04]} Kh8 {[%emt 0:00:09]} 28. Bf4 {[%emt 0:03:44]} Rd8 {[%emt 0:05:14]} 29. Rxd8+ {[%emt 0:01:10]} Bxd8 {[%emt 0:00:09]} 30. Qxb7 {[%emt 0:00:45]} Qa1+ {[%emt 0:01:22]} 31. Kh2 {[%emt 0:00:10]} Kxh7 {[%emt 0:02:28]} 32. Qxf7 {[%emt 0:02:01]} Qd4 {[%emt 0:01:57] unterminated} 33. Qh5+ {[%emt 0:04:19]} Kg8 {[%emt 0:00:14]} 34. Be3 {[%emt 0:00:29] unterminated} Qd7 {[%emt 0:03:09] unterminated} 35. Bxc5 {[%emt 0:02:56] unterminated} Be7 {[%emt 0:01:30] unterminated} 36. Bxe7 {[%emt 0:02:13]} Qxe7 {[%emt 0:00:28] unterminated} 37. a4 {[%emt 0:01:18] unterminated} Qd8 {[%emt 0:01:32] unterminated} 38. Qg4 {[%emt 0:03:04] unterminated} Kf7 {[%emt 0:02:50]} 39. Qf3+ {[%emt 0:00:40]} Kg8 {[%emt 0:00:23]} 40. Qc6 {[%emt 0:00:25]} Qh4+ {[%emt 0:00:31]} 41. Kg1 {[%emt 0:30:13]} Qg4 {[%emt 0:30:24] unterminated} 42. g3 $18 {[%emt 0:10:08] unterminated} Qf5 {[%emt 0:00:00] unterminated} 43. Qa8+ {[%emt 0:00:00]} Kh7 {[%emt 0:00:00] unterminated} 44. Qxa6 {[%emt 0:00:00] unterminated} Qxe5 {[%emt 0:00:00]} 45. Qb5 {[%emt 0:00:00] unterminated} Qe1+ {[%emt 0:00:00] unterminated} 46. Kg2 {[%emt 0:00:00]} Qe4+ {[%emt 0:00:00]} 47. Kh2 {[%emt 0:00:00] unterminated} Qe2 {[%emt 0:00:00] unterminated} 48. Qc5 {[%emt 0:00:00] unterminated} e5 {[%emt 0:00:00] unterminated} 49. a5 {[%emt 0:00:00] unterminated} Qa2 {[%emt 0:00:00] unterminated} 1-0

[Event "DVM U14 2019"]
[Site "Magedburg"]
[Date "2019.12.27"]
[Round "1"]
[White "Zamhöfer, Luca"]
[Black "Stockmann, Till"]
[Result "0-1"]
[ECO "B22"]
[WhiteElo "1724"]
[BlackElo "1894"]
[Annotator "NA RC"]
[PlyCount "74"]
[EventDate "2019.12.27"]
[EventType "team-tourn"]
[EventRounds "7"]
[EventCountry "GER"]
[SourceTitle "playchess.com"]
[Source "ChessBase"]
[SourceQuality "1"]
[WhiteTeam "SF Essen-Katernberg"]
[BlackTeam "Schachzwerge Magdeburg"]
[TimeControl "40/5400+30:1800+30"]

1. e4 {[%emt 0:00:00]} c5 {[%emt 0:00:00]} 2. c3 {[%emt 0:00:00]} d5 {[%emt 0:00:04]} 3. exd5 {[%emt 0:00:00]} Qxd5 {[%emt 0:00:06]} 4. d4 {[%emt 0:00:16]} Nf6 {[%emt 0:00:39]} 5. Nf3 {[%emt 0:00:17]} Bg4 {[%emt 0:00:40]} 6. Be2 {[%emt 0:00:16]} e6 {[%emt 0:00:51]} 7. O-O {[%emt 0:00:38] unterminated} Nc6 {[%emt 0:01:57]} 8. Be3 {[%emt 0:00:13]} cxd4 {[%emt 0:00:33]} 9. cxd4 {[%emt 0:00:11]} Be7 {[%emt 0:01:17]} 10. Nc3 {[%emt 0:02:24]} Qd6 {[%emt 0:01:18]} 11. h3 {[%emt 0:01:47] unterminated} Bh5 {[%emt 0:10:23] unterminated} 12. Qb3 {[%emt 0:06:26] unterminated} O-O {[%emt 0:05:17] unterminated} 13. g4 {[%emt 0:11:44] B22: Sicilian: 2 c3} (13. Rfd1 Rfd8 14. a3 a6 15. Na4 Nd5 16. Nc5 Rab8 17. Rac1 Nf4 18. Bxf4 Qxf4 19. Qe3 Bd6 20. g4 Bg6 21. Qxf4 Bxf4 22. Rc3 Bd6 {½-½ (41) Sjugirov,S (2647)-Dubov,D (2638) Ekaterinburg 2013}) 13... Bg6 {[%emt 0:01:52] unterminated} 14. a3 {[%emt 0:24:31] unterminated} a6 $146 {[%emt 0:04:07] unterminated} ({Predecessor:} 14... Nd5 15. Nxd5 exd5 16. Rac1 Rab8 17. Rc5 Rfd8 18. Rfc1 h5 19. Rb5 hxg4 20. hxg4 b6 {0-1 (52) Lykov,V (2164)-Pushkarev,D (2369) Kemerovo 2007}) 15. Rfd1 {[%emt 0:04:03] unterminated} Rfd8 {[%emt 0:05:51] unterminated} 16. Rac1 {[%emt 0:11:22] unterminated} b5 {[%emt 0:07:01] unterminated} 17. Bg5 {[%emt 0:16:29] unterminated} Rac8 {[%emt 0:05:25]} 18. Bh4 {[%emt 0:07:08]} Ne4 {[%emt 0:06:32]} 19. Nxe4 {[%emt 0:03:06]} Bxe4 {[%emt 0:00:06]} 20. Bg3 {[%emt 0:00:08] unterminated} Qd7 {[%emt 0:04:38] unterminated} 21. Ne5 $19 {[%emt 0:02:44]} (21. Qe3 $15 Bd5 22. Ne5) 21... Nxd4 {[%emt 0:05:38]} 22. Nxd7 {[%emt 0:01:04]} Nxb3 {[%emt 0:00:13]} 23. Rxc8 {[%emt 0:00:07]} Rxc8 {[%emt 0:00:06]} 24. Bd3 {[%emt 0:02:02]} Bf3 {[%emt 0:03:55]} 25. Re1 {[%emt 0:00:48]} f6 {[%emt 0:01:24]} 26. Be4 {[%emt 0:03:16]} Nd2 {[%emt 0:00:27]} 27. Bb1 {[%emt 0:01:33]} Bxg4 {[%emt 0:01:52]} 28. Nb6 {[%emt 0:00:35]} Nf3+ {[%emt 0:01:42]} 29. Kf1 {[%emt 0:00:11]} Bxh3+ {[%emt 0:00:17]} 30. Ke2 {[%emt 0:00:05]} Nd4+ {[%emt 0:00:23]} 31. Kd3 {[%emt 0:01:17]} Bf5+ {[%emt 0:01:21]} 32. Ke3 {[%emt 0:00:41]} Nc2+ {[%emt 0:00:22]} 33. Bxc2 {[%emt 0:00:06]} Rxc2 {[%emt 0:00:12]} 34. Kf3 {[%emt 0:00:55]} Rc6 {[%emt 0:01:09]} 35. Na8 {[%emt 0:00:25]} Bd8 {[%emt 0:00:35]} 36. Rd1 {[%emt 0:00:29]} Rc8 {[%emt 0:00:14]} 37. Rd7 {[%emt 0:00:41]} Rxa8 {[%emt 0:00:24] normal} 0-1